bitfinex-derivatives/quotes_BTCF0:USTF0_20250912
["timestamp","ask_amount","ask_price","bid_price","bid_amount"]
[1757676262193,1.00192629,115150.0,115140.0,0.286]
[1757676263095,1.66631537,115150.0,115140.0,0.286]
[1757676263997,0.87723537,115150.0,115140.0,0.286]
[1757676264202,1.66627537,115150.0,115140.0,0.286]
[1757676264603,0.87723537,115150.0,115140.0,0.30917]
[1757676264904,1.66627537,115150.0,115140.0,0.30917]
[1757676267005,1.68997263,115150.0,115140.0,0.30917]
[1757676267205,0.90093263,115150.0,115140.0,0.30917]
[1757676267507,1.42017263,115150.0,115140.0,0.30917]
[1757676268304,2.92017263,115150.0,115140.0,0.30917]
[1757676268605,1.88175079,115150.0,115140.0,0.30917]
[1757676268800,2.92017263,115150.0,115140.0,0.30917]
[1757676269005,2.67079079,115150.0,115140.0,0.30917]
[1757676269205,2.92017263,115150.0,115140.0,0.30917]
[1757676269393,2.13113263,115150.0,115140.0,0.30917]
[1757676269593,1.42161263,115150.0,115140.0,0.30917]
[1757676271307,0.63113263,115150.0,115140.0,0.30917]
[1757676271494,1.42161263,115150.0,115140.0,0.30917]
[1757676272900,0.63113263,115150.0,115140.0,0.30917]
[1757676273107,1.42325263,115150.0,115140.0,0.30917]
[1757676273304,1.42321263,115150.0,115140.0,0.30917]
[1757676276409,1.42373263,115150.0,115140.0,0.30917]
[1757676277208,1.42365263,115150.0,115140.0,0.30917]
[1757676277510,0.38175079,115150.0,115140.0,0.30917]
[1757676277709,1.42429263,115150.0,115140.0,0.30917]
[1757676278206,1.17491079,115150.0,115140.0,0.30917]
[1757676278411,1.45627827,115150.0,115140.0,0.30917]
[1757676278807,0.63113263,115150.0,115140.0,0.30917]
[1757676279007,1.45643835,115150.0,115140.0,0.30917]
[1757676279203,1.45643805,115150.0,115140.0,0.30917]
[1757676279407,1.20643805,115150.0,115140.0,0.30917]
[1757676279812,0.36542046,115150.0,115140.0,0.30917]
[1757676280214,1.06870713,115150.0,115140.0,0.32309]
[1757676280413,1.02176954,115150.0,115140.0,0.32309]
[1757676280812,1.06870713,115150.0,115140.0,0.32309]
[1757676281113,1.02176954,115150.0,115140.0,0.32309]
[1757676281305,0.89707862,115150.0,115140.0,0.32309]
[1757676281502,1.02192954,115150.0,115140.0,0.32309]
[1757676283316,0.22780954,115150.0,115140.0,0.32309]
[1757676283511,1.02168954,115150.0,115140.0,0.32309]
[1757676283808,1.02164954,115150.0,115140.0,0.32309]
[1757676284807,1.00432412,115150.0,115140.0,0.32309]
[1757676285115,1.03554954,115150.0,115140.0,0.32309]
[1757676285321,1.00432412,115150.0,115140.0,0.32309]
[1757676286424,1.05254179,115150.0,115140.0,0.32309]
[1757676287922,1.05254179,115150.0,115140.0,0.30917]
[1757676287923,1.06644179,115150.0,115140.0,0.30917]
[1757676288730,1.25325038,115150.0,115140.0,0.30917]
[1757676289030,1.25325038,115150.0,115140.0,0.32309]
[1757676289422,1.06644179,115150.0,115140.0,0.32309]
[1757676290733,1.25325038,115150.0,115140.0,0.30917]
[1757676291331,1.25325038,115150.0,115140.0,0.286]
[1757676291525,1.25325038,115150.0,115140.0,0.30917]
[1757676291726,1.25289038,115150.0,115140.0,0.32309]
[1757676293932,1.25289038,115150.0,115140.0,0.30917]
[1757676295333,0.8792732,115150.0,115140.0,0.30917]
[1757676295632,1.25289038,115150.0,115140.0,0.30917]
[1757676299530,1.25289038,115150.0,115140.0,0.286]
[1757676300437,1.43969897,115150.0,115140.0,0.286]
[1757676300730,1.44229897,115150.0,115140.0,0.286]
[1757676300933,1.52046198,115150.0,115140.0,0.286]
[1757676302236,1.33365339,115150.0,115140.0,0.286]
[1757676302735,1.52046198,115150.0,115140.0,0.286]
[1757676303838,1.33365339,115150.0,115140.0,0.286]
[1757676304742,1.52046198,115150.0,115140.0,0.286]
[1757676304929,1.48923656,115150.0,115140.0,0.286]
[1757676305237,1.48923656,115150.0,115110.0,0.10083099]
[1757676305238,1.73923656,115150.0,115110.0,0.10083099]
[1757676305438,0.02276,115130.0,115120.0,0.03695]
[1757676305635,0.81524,115130.0,115120.0,0.31695]
[1757676305840,0.83893726,115130.0,115120.0,0.31695]
[1757676306442,1.21255444,115130.0,115120.0,0.31695]
[1757676307042,1.21355444,115130.0,115120.0,0.31695]
[1757676307840,1.21455444,115130.0,115120.0,0.31695]
[1757676308045,1.21355444,115130.0,115120.0,0.31695]
[1757676308344,1.18985718,115130.0,115120.0,0.30396]
[1757676308741,1.21325614,115130.0,115120.0,0.30396]
[1757676309346,1.18885718,115130.0,115120.0,0.30396]
[1757676309543,1.21225618,115130.0,115120.0,0.30396]
[1757676309743,1.18857718,115130.0,115120.0,0.31795]
[1757676309942,1.2145733,115130.0,115120.0,0.31795]
[1757676311643,1.2144533,115130.0,115120.0,0.31795]
[1757676312150,0.4223733,115130.0,115120.0,0.31795]
[1757676312350,1.2144133,115130.0,115120.0,0.31795]
[1757676315351,1.19101718,115130.0,115120.0,0.32406]
[1757676316653,1.19101718,115130.0,115120.0,0.31007]
[1757676317252,0.39897718,115130.0,115120.0,0.31007]
[1757676317452,1.19077718,115130.0,115120.0,0.31007]
[1757676318647,1.21416096,115130.0,115120.0,0.28711]
[1757676318845,1.21396096,115130.0,115120.0,0.28711]
[1757676319354,0.42236096,115130.0,115120.0,0.28711]
[1757676319552,1.21396096,115130.0,115120.0,0.31007]
[1757676319751,0.42236096,115130.0,115120.0,0.31007]
[1757676319947,1.21392096,115130.0,115120.0,0.31007]
[1757676320153,1.21388096,115130.0,115120.0,0.31007]
[1757676320547,0.42236096,115130.0,115120.0,0.31007]
[1757676320846,1.21388096,115130.0,115120.0,0.31007]
[1757676322255,1.21384096,115130.0,115120.0,0.31007]
[1757676323153,0.42236096,115130.0,115120.0,0.31007]
[1757676323352,1.21364096,115130.0,115120.0,0.31007]
[1757676323553,1.21364096,115130.0,115120.0,0.32346]
[1757676327852,1.21364096,115130.0,115120.0,0.34346]
[1757676328757,0.42236096,115130.0,115120.0,0.34346]
[1757676328961,1.21336096,115130.0,115120.0,0.34346]
[1757676334468,1.23330514,115130.0,115120.0,0.34346]
[1757676337572,0.85968796,115130.0,115120.0,0.34346]
[1757676337869,1.23330514,115130.0,115120.0,0.34346]
[1757676338063,1.23330514,115130.0,115120.0,0.33007]
[1757676340271,1.23330514,115130.0,115120.0,0.34346]
[1757676340672,1.26455273,115130.0,115120.0,0.34346]
[1757676341970,0.09993555,115130.0,115120.0,0.34346]
[1757676342175,1.26367273,115130.0,115120.0,0.34346]
[1757676345181,1.26367273,115130.0,115120.0,0.30711]
[1757676346476,1.13927937,115130.0,115120.0,0.30711]
[1757676348074,1.18621696,115130.0,115120.0,0.30711]
[1757676350680,1.10803178,115130.0,115120.0,0.30711]
[1757676357586,1.48264369,115130.0,115120.0,0.30711]
[1757676357781,1.35803178,115130.0,115120.0,0.28711]
[1757676358289,1.51389128,115130.0,115120.0,0.28711]
[1757676358490,1.56082887,115130.0,115120.0,0.28711]
[1757676359385,0.14617191,115100.0,115090.0,0.0530798]
[1757676359576,0.93597191,115100.0,115090.0,0.3730798]
[1757676359987,1.06058382,115100.0,115090.0,0.3730798]
[1757676360891,1.06158382,115100.0,115090.0,0.3780798]
[1757676361688,1.06158382,115100.0,115090.0,0.3800798]
[1757676362290,1.06418382,115100.0,115090.0,0.3800798]
[1757676365590,1.20941191,115100.0,115090.0,0.50469171]
[1757676365787,1.0848,115100.0,115090.0,0.50469171]
[1757676366088,1.20941191,115100.0,115090.0,0.50469171]
[1757676369595,0.41957191,115100.0,115090.0,0.50469171]
[1757676369781,1.20941191,115100.0,115090.0,0.50469171]
[1757676370187,1.0848,115100.0,115090.0,0.50469171]
[1757676370393,1.0848,115100.0,115090.0,0.3800798]
[1757676370592,1.20941191,115100.0,115090.0,0.3800798]
[1757676370787,1.20941191,115100.0,115090.0,0.50469171]
[1757676371796,1.20941191,115100.0,115090.0,0.3800798]
[1757676371995,1.20941191,115100.0,115090.0,0.50469171]
[1757676372601,1.20941191,115100.0,115090.0,0.3800798]
[1757676373095,1.0848,115100.0,115090.0,0.3800798]
[1757676373294,1.20941191,115100.0,115090.0,0.3800798]
[1757676374299,0.41957191,115100.0,115090.0,0.50469171]
[1757676374500,1.20941191,115100.0,115090.0,0.50469171]
[1757676375709,1.20941191,115100.0,115090.0,0.3800798]
[1757676376007,1.20941191,115100.0,115090.0,0.50469171]
[1757676377309,0.39801191,115100.0,115090.0,0.50469171]
[1757676377508,0.95937191,115100.0,115090.0,0.50469171]
[1757676377707,0.83476,115100.0,115090.0,0.50469171]
[1757676377909,0.2734,115100.0,115090.0,0.75469171]
[1757676378105,0.2734,115100.0,115090.0,0.87930362]
[1757676378309,0.2734,115100.0,115090.0,0.75469171]
[1757676379207,0.2734,115100.0,115090.0,0.87930362]
[1757676379406,0.2734,115100.0,115090.0,0.8326906]
[1757676379609,0.81105327,115120.0,115110.0,0.03437]
[1757676379804,0.81105327,115120.0,115110.0,0.43898191]
[1757676380910,0.81105327,115120.0,115110.0,0.43998191]
[1757676381114,0.81205327,115120.0,115110.0,0.44198191]
[1757676383320,0.02105327,115120.0,115110.0,0.44198191]
[1757676383614,0.69493327,115120.0,115110.0,0.44198191]
[1757676383806,0.67488,115120.0,115110.0,0.44198191]
[1757676384410,0.67488,115120.0,115110.0,0.31737]
[1757676384714,0.67488,115120.0,115110.0,0.44198191]
[1757676386311,0.001,115120.0,115110.0,0.76040383]
[1757676391713,0.001,115120.0,115110.0,1.55068383]
[1757676392114,0.001,115120.0,115110.0,0.76040383]
[1757676392419,0.001,115120.0,115110.0,0.88501574]
[1757676392615,0.001,115120.0,115110.0,1.67525574]
[1757676392819,0.001,115120.0,115110.0,1.55060383]
[1757676393822,0.001,115120.0,115110.0,1.67521574]
[1757676394721,0.001,115120.0,115110.0,1.67506126]
[1757676395226,0.001,115120.0,115110.0,0.88486126]
[1757676395418,0.001,115120.0,115110.0,1.67494126]
[1757676396425,0.001,115120.0,115110.0,0.88486126]
[1757676397025,0.001,115120.0,115110.0,1.67478126]
[1757676397226,0.001,115120.0,115110.0,1.67474126]
[1757676399427,0.001,115120.0,115110.0,1.42474126]
[1757676399622,0.001,115120.0,115110.0,0.63486126]
[1757676399821,0.001,115120.0,115110.0,1.42490126]
[1757676405030,0.001,115120.0,115110.0,0.63486126]
[1757676405231,0.001,115120.0,115110.0,1.42466126]
[1757676406324,0.001,115120.0,115110.0,1.30012659]
[1757676406530,0.001,115120.0,115110.0,1.54920154]
[1757676407933,0.001,115120.0,115110.0,0.75940154]
[1757676408529,0.001,115120.0,115110.0,1.54916154]
[1757676411028,0.001,115120.0,115110.0,0.75940154]
[1757676411233,0.001,115120.0,115110.0,1.54912154]
[1757676411629,0.001,115120.0,115110.0,0.75940154]
[1757676412135,0.001,115120.0,115110.0,1.54912154]
[1757676415136,0.001,115120.0,115110.0,1.17551192]
[1757676415330,0.001,115120.0,115110.0,1.54912154]
[1757676418033,0.4794375,115140.0,115120.0,0.03521]
[1757676418034,0.2724,115140.0,115120.0,0.03521]
[1757676418238,0.2724,115140.0,115130.0,1.19853962]
[1757676418438,0.2724,115140.0,115130.0,1.51853962]
[1757676418833,0.2724,115140.0,115130.0,1.14493]
[1757676419033,0.2724,115140.0,115130.0,1.51853962]
[1757676419235,0.2734,115140.0,115130.0,1.52732506]
[1757676420342,0.0036,115140.0,115130.0,1.52732506]
[1757676420542,0.0036,115140.0,115130.0,1.52832506]
[1757676420941,0.0026,115140.0,115130.0,1.53032506]
[1757676421438,4e-05,115150.0,115140.0,0.01267]
[1757676421645,4e-05,115150.0,115140.0,0.76639847]
[1757676421835,4e-05,115150.0,115140.0,1.55607847]
[1757676422140,0.02132,115150.0,115140.0,0.76639847]
[1757676422445,0.20812481,115150.0,115140.0,1.36927366]
[1757676422944,0.02232,115150.0,115140.0,1.18246885]
[1757676423237,0.00104,115150.0,115140.0,1.55607847]
[1757676425545,0.45660481,115180.0,115140.0,1.74288328]
[1757676425745,0.02354005,115180.0,115170.0,0.40881962]
[1757676425944,0.02354005,115180.0,115170.0,0.55201481]
[1757676425945,0.04482005,115180.0,115170.0,0.55201481]
[1757676426146,0.31815503,115200.0,115170.0,0.74491962]
[1757676426338,0.14489852,115200.0,115190.0,0.22201481]
[1757676426543,0.12361852,115200.0,115190.0,0.54201481]
[1757676426740,0.12361852,115200.0,115190.0,0.72881962]
[1757676426945,0.10008,115200.0,115190.0,0.54201481]
[1757676427146,0.12136,115200.0,115190.0,0.54201481]
[1757676427440,0.30816481,115200.0,115190.0,0.61087469]
[1757676427644,0.37136,115200.0,115190.0,0.54001481]
[1757676427836,0.74496962,115200.0,115190.0,0.35321]
[1757676428033,0.56016481,115200.0,115190.0,0.35321]
[1757676428236,0.56016481,115200.0,115190.0,0.35121]
[1757676428847,0.56216481,115200.0,115190.0,0.53801481]
[1757676430551,0.35408,115200.0,115190.0,0.53801481]
[1757676430852,0.35408,115200.0,115190.0,0.72481962]
[1757676431345,0.35408,115200.0,115190.0,0.35121]
[1757676431544,0.20808481,115210.0,115200.0,0.03521]
[1757676431750,0.23134871,115210.0,115200.0,0.35521]
[1757676432051,0.23134871,115210.0,115200.0,0.54201481]
[1757676432343,0.0445439,115210.0,115200.0,0.97881962]
[1757676432943,0.0455439,115210.0,115200.0,0.60521]
[1757676433247,0.0455439,115210.0,115200.0,0.97881962]
[1757676433449,0.0455439,115210.0,115200.0,0.60521]
[1757676433651,0.23234871,115210.0,115200.0,0.60521]
[1757676434048,0.23234871,115210.0,115200.0,0.97881962]
[1757676434247,0.0455439,115210.0,115200.0,0.97881962]
[1757676434744,0.0455439,115210.0,115200.0,0.60521]
[1757676435146,0.0242639,115210.0,115200.0,1.95762443]
[1757676435449,0.001,115210.0,115200.0,2.20762443]
[1757676435647,0.33001759,115240.0,115230.0,0.03521]
[1757676435648,0.47788481,115240.0,115230.0,0.03521]
[1757676435853,0.50097897,115240.0,115230.0,0.55201481]
[1757676436153,0.04437416,115240.0,115230.0,0.80201481]
[1757676436547,0.02309416,115240.0,115230.0,0.80201481]
[1757676436747,0.02309416,115240.0,115230.0,0.35254]
[1757676436748,0.43126378,115240.0,115230.0,0.35254]
[1757676436948,0.07812541,115240.0,115230.0,0.35254]
[1757676437346,0.43845503,115240.0,115230.0,0.36521]
[1757676437552,0.45173503,115240.0,115230.0,0.35254]
[1757676437847,0.25165022,115240.0,115230.0,0.55201481]
[1757676438657,0.23117897,115240.0,115230.0,0.55201481]
[1757676438847,0.04437416,115240.0,115230.0,0.55201481]
[1757676439052,0.23117897,115240.0,115230.0,0.55201481]
[1757676439253,0.04437416,115240.0,115230.0,0.80201481]
[1757676439453,0.23117897,115240.0,115230.0,0.80201481]
[1757676440047,0.04437416,115240.0,115230.0,0.61521]
[1757676440254,0.04437416,115240.0,115230.0,0.80201481]
[1757676440255,0.23117897,115240.0,115230.0,0.80201481]
[1757676440758,0.23117897,115240.0,115230.0,0.61521]
[1757676440951,0.43126378,115240.0,115230.0,0.80201481]
[1757676441455,0.41798378,115240.0,115230.0,0.80201481]
[1757676441849,0.41798378,115240.0,115230.0,0.61521]
[1757676442050,0.45095286,115240.0,115230.0,0.60254]
[1757676442251,0.45095286,115240.0,115230.0,0.33]
[1757676442955,0.63775767,115240.0,115230.0,0.33]
[1757676443255,0.01314,115210.0,115200.0,0.01267]
[1757676443450,0.22125481,115210.0,115200.0,0.56179]
[1757676443752,0.03445,115210.0,115200.0,0.56179]
[1757676443954,0.02131,115210.0,115200.0,0.76183481]
[1757676444156,0.20811481,115210.0,115200.0,0.76183481]
[1757676444355,0.02131,115210.0,115200.0,1.19863962]
[1757676444550,1.00031481,115220.0,115210.0,0.03503]
[1757676444859,1.02308073,115220.0,115210.0,0.54183481]
[1757676445056,0.23088073,115220.0,115210.0,0.79183481]
[1757676445249,0.02276592,115220.0,115210.0,0.79183481]
[1757676445556,0.07990667,115240.0,115210.0,0.79183481]
[1757676445557,1.01193389,115240.0,115210.0,0.79183481]
[1757676445753,0.20811481,115230.0,115220.0,0.22183481]
[1757676445960,0.23088786,115230.0,115220.0,0.76183481]
[1757676446553,0.24402786,115230.0,115220.0,0.56179]
[1757676446850,0.24402786,115230.0,115220.0,0.54]
[1757676447055,0.24402786,115230.0,115220.0,0.56179]
[1757676447461,0.24402786,115230.0,115220.0,0.56789]
[1757676448458,0.83628305,115230.0,115220.0,0.76893481]
[1757676448660,1.02300786,115230.0,115220.0,0.76893481]
[1757676449463,0.83620305,115230.0,115220.0,0.76893481]
[1757676449759,1.02300786,115230.0,115220.0,0.58213]
[1757676449949,1.02300786,115230.0,115220.0,0.76893481]
[1757676450152,1.02300786,115230.0,115220.0,0.58213]
[1757676450355,1.02300786,115230.0,115220.0,0.76893481]
[1757676451252,1.02300786,115230.0,115220.0,0.58213]
[1757676451449,0.83620305,115230.0,115220.0,0.76893481]
[1757676451657,1.02300786,115230.0,115220.0,0.76893481]
[1757676453756,1.02296786,115230.0,115220.0,0.76893481]
[1757676454362,1.02284786,115230.0,115220.0,0.76893481]
[1757676454858,1.02284786,115230.0,115220.0,0.58213]
[1757676455062,0.02277305,115230.0,115220.0,0.76893481]
[1757676455262,1.02272786,115230.0,115220.0,0.76893481]
[1757676456251,0.23088786,115230.0,115220.0,0.76893481]
[1757676456562,1.02264786,115230.0,115220.0,0.76893481]
[1757676456761,0.83584305,115230.0,115220.0,0.76893481]
[1757676456957,1.02264786,115230.0,115220.0,0.58213]
[1757676457162,1.02264786,115230.0,115220.0,0.76893481]
[1757676457358,0.27782545,115230.0,115220.0,0.76893481]
[1757676457560,1.02264786,115230.0,115220.0,0.76893481]
[1757676458163,1.06958545,115230.0,115220.0,0.76893481]
[1757676459362,1.06958545,115230.0,115220.0,0.51893481]
[1757676459661,0.27782545,115230.0,115220.0,0.51893481]
[1757676459861,1.06938545,115230.0,115220.0,0.51893481]
[1757676460262,0.27782545,115230.0,115220.0,0.51893481]
[1757676460463,0.88250064,115230.0,115220.0,0.51893481]
[1757676460764,1.06930545,115230.0,115220.0,0.33213]
[1757676460966,1.06930545,115230.0,115220.0,0.51893481]
[1757676462567,0.09102064,115230.0,115220.0,0.51893481]
[1757676462860,0.06971064,115230.0,115220.0,0.70573962]
[1757676463066,0.05397627,115230.0,115220.0,0.95573962]
[1757676463262,0.07528627,115230.0,115220.0,0.58213]
[1757676463465,0.07528627,115230.0,115220.0,0.95573962]
[1757676464166,0.05397627,115230.0,115220.0,0.95573962]
[1757676464759,0.02277305,115230.0,115220.0,1.20573962]
[1757676465470,0.02277305,115230.0,115220.0,0.95573962]
[1757676465471,0.23088786,115230.0,115220.0,0.95573962]
[1757676465673,0.26209108,115230.0,115220.0,0.95573962]
[1757676466269,0.23088786,115230.0,115220.0,0.95573962]
[1757676466767,0.04408305,115230.0,115220.0,0.95573962]
[1757676468480,0.04408305,115230.0,115220.0,0.70645995]
[1757676469274,0.04408305,115230.0,115220.0,0.58213]
[1757676469470,0.02277305,115230.0,115220.0,1.0807899]
[1757676470472,0.04408305,115230.0,115220.0,0.58213]
[1757676470965,0.04408305,115230.0,115220.0,0.70645995]
[1757676471170,0.168413,115230.0,115220.0,0.70645995]
[1757676471560,0.04408305,115230.0,115220.0,0.70645995]
[1757676471870,0.168413,115230.0,115220.0,0.70645995]
[1757676472267,0.168413,115230.0,115220.0,0.58213]
[1757676472571,0.168413,115230.0,115220.0,0.70645995]
[1757676472872,0.168413,115230.0,115220.0,0.58213]
[1757676473060,0.168413,115230.0,115220.0,0.70645995]
[1757676473870,0.168413,115230.0,115220.0,0.58213]
[1757676474071,0.181493,115230.0,115220.0,0.58213]
[1757676475273,0.168413,115230.0,115220.0,0.58213]
[1757676476070,0.181493,115230.0,115220.0,0.58213]
[1757676476269,0.181493,115230.0,115220.0,0.56889]
[1757676476476,0.168413,115230.0,115220.0,0.58256]
[1757676477878,0.04408305,115230.0,115220.0,0.58256]
[1757676478082,0.168413,115230.0,115220.0,0.58256]
[1757676478678,0.181493,115230.0,115220.0,0.56889]
[1757676479778,0.05716305,115230.0,115220.0,0.56889]
[1757676480075,0.168413,115230.0,115220.0,0.58256]
[1757676483777,0.181493,115230.0,115220.0,0.56889]
[1757676484081,0.33702617,115230.0,115220.0,0.5471]
[1757676484475,0.30582295,115230.0,115220.0,0.5471]
[1757676484875,0.181493,115230.0,115220.0,0.5471]
[1757676485076,0.181493,115230.0,115220.0,0.57007]
[1757676492887,0.30582295,115230.0,115220.0,0.57007]
[1757676493288,0.30482425,115230.0,115220.0,0.57007]
[1757676493486,0.1804943,115230.0,115220.0,0.57007]
[1757676494177,0.9510143,115230.0,115220.0,0.57007]
[1757676494582,0.1804943,115230.0,115220.0,0.57007]
[1757676494788,0.9713743,115230.0,115220.0,0.57007]
[1757676497992,1.09570425,115230.0,115220.0,0.32007]
[1757676498195,0.9713743,115230.0,115220.0,0.32007]
[1757676498494,1.09570425,115230.0,115220.0,0.32007]
[1757676500491,1.09570425,115230.0,115220.0,0.5471]
[1757676500692,1.12654747,115230.0,115220.0,0.2971]
[1757676500885,1.09534425,115230.0,115220.0,0.2971]
[1757676504887,1.12654747,115230.0,115220.0,0.2971]
[1757676505892,0.33602747,115230.0,115220.0,0.2971]
[1757676506192,1.12630747,115230.0,115220.0,0.2971]
[1757676506393,1.19495655,115230.0,115220.0,0.2971]
[1757676506593,1.24189414,115230.0,115220.0,0.2971]
[1757676507088,1.24189414,115230.0,115220.0,0.291]
[1757676508692,1.24173414,115230.0,115220.0,0.291]
[1757676508894,1.24184607,115230.0,115220.0,0.291]
[1757676509296,1.19490848,115230.0,115220.0,0.291]
[1757676517405,0.40478848,115230.0,115220.0,0.291]
[1757676517605,1.19446848,115230.0,115220.0,0.291]
[1757676517805,0.94840858,115230.0,115220.0,0.291]
[1757676518005,1.19706848,115230.0,115220.0,0.291]
[1757676518712,0.40738848,115230.0,115220.0,0.291]
[1757676519006,1.16586526,115230.0,115220.0,0.291]
[1757676520806,1.19706848,115230.0,115220.0,0.291]
[1757676523406,1.24400607,115230.0,115220.0,0.291]
[1757676525813,1.21280285,115230.0,115220.0,0.291]
[1757676530216,1.16586526,115230.0,115220.0,0.291]
[1757676530415,1.47706059,115230.0,115220.0,0.291]
[1757676530916,1.5551539,115230.0,115220.0,0.291]
[1757676535220,1.52391658,115230.0,115220.0,0.291]
[1757676538015,0.96406135,115230.0,115220.0,0.291]
[1757676538216,1.52391658,115230.0,115220.0,0.291]
[1757676539225,0.54761817,115230.0,115220.0,0.291]
[1757676539422,1.33729817,115230.0,115220.0,0.291]
[1757676545729,1.52391658,115230.0,115220.0,0.291]
[1757676547027,0.54761817,115230.0,115220.0,0.3134]
[1757676547322,1.33729817,115230.0,115220.0,0.3134]
[1757676547922,1.36855967,115230.0,115220.0,0.3134]
[1757676548427,0.99532285,115230.0,115220.0,0.3134]
[1757676548629,1.36855967,115230.0,115220.0,0.3134]
[1757676549922,0.57887967,115230.0,115220.0,0.3134]
[1757676550127,1.36851967,115230.0,115220.0,0.3134]
[1757676552830,1.33725817,115230.0,115220.0,0.3134]
[1757676553330,0.17438135,115230.0,115220.0,0.3134]
[1757676553532,0.96402135,115230.0,115220.0,0.3134]
[1757676553831,1.33725817,115230.0,115220.0,0.3134]
[1757676555232,0.39225836,115230.0,115220.0,1.01285841]
[1757676555421,0.98219995,115230.0,115220.0,0.82624]
[1757676555621,1.12196237,115230.0,115220.0,0.82624]
[1757676556140,1.30858078,115230.0,115220.0,0.82624]
[1757676556333,1.32119078,115230.0,115220.0,0.82624]
[1757676557429,1.32119078,115230.0,115220.0,0.83491]
[1757676559832,1.38800328,115230.0,115220.0,0.54967]
[1757676560331,1.57462169,115230.0,115220.0,0.54967]
[1757676560533,1.38800328,115230.0,115220.0,0.54967]
[1757676560925,1.38800328,115230.0,115220.0,0.57207]
[1757676561230,1.38799268,115230.0,115220.0,0.57207]
[1757676563234,0.59834732,115230.0,115220.0,0.57207]
[1757676563435,1.37529732,115230.0,115220.0,0.58504]
[1757676568637,1.38896732,115230.0,115220.0,0.57207]
[1757676571037,1.37344679,115230.0,115220.0,0.57207]
[1757676571437,1.37349788,115230.0,115220.0,0.57207]
[1757676571636,1.31091442,115230.0,115220.0,0.57207]
[1757676573237,1.37349788,115230.0,115220.0,0.57207]
[1757676577840,1.00026106,115230.0,115220.0,0.57207]
[1757676578140,1.37349788,115230.0,115220.0,0.57207]
[1757676579340,1.37349788,115230.0,115220.0,0.32207]
[1757676580940,1.38904742,115230.0,115220.0,0.32207]
[1757676584639,0.2262506,115230.0,115220.0,0.33504]
[1757676584839,1.38892742,115230.0,115220.0,0.32207]
[1757676586950,1.34204762,115230.0,115220.0,0.32207]
[1757676589450,0.9688108,115230.0,115220.0,0.32207]
[1757676589650,1.34204762,115230.0,115220.0,0.32207]
[1757676590348,1.2175922,115230.0,115220.0,0.32207]
[1757676597364,1.264472,115230.0,115220.0,0.32207]
[1757676600666,1.2175922,115230.0,115220.0,0.32207]
[1757676602862,1.2175922,115230.0,115220.0,0.54967]
[1757676604066,1.2175522,115230.0,115220.0,0.54967]
[1757676605960,1.2175522,115230.0,115220.0,0.541]
[1757676606160,1.2175522,115230.0,115220.0,0.56433]
[1757676606868,1.2175522,115230.0,115220.0,0.573]
[1757676607166,1.2175522,115230.0,115220.0,0.54967]
[1757676607960,1.2175522,115230.0,115220.0,0.573]
[1757676608167,1.2175522,115230.0,115220.0,0.54967]
[1757676610266,1.21757347,115230.0,115220.0,0.54967]
[1757676610662,1.26445327,115230.0,115220.0,0.54967]
[1757676611163,1.24890373,115230.0,115220.0,0.54967]
[1757676615367,1.24890373,115230.0,115220.0,0.573]
[1757676617268,0.45950373,115230.0,115220.0,0.573]
[1757676617469,1.24890373,115230.0,115220.0,0.573]
[1757676618069,1.24890291,115230.0,115220.0,0.573]
[1757676621072,1.23320655,115230.0,115220.0,0.573]
[1757676623773,1.23316655,115230.0,115220.0,0.573]
[1757676627374,1.23316655,115230.0,115220.0,0.54967]
[1757676639386,1.23316655,115230.0,115220.0,0.29967]
[1757676646483,1.21754135,115230.0,115220.0,0.29967]
[1757676649897,1.21754135,115230.0,115220.0,0.32145]
[1757676650597,1.23316655,115230.0,115220.0,0.32145]
[1757676650997,1.26442872,115230.0,115220.0,0.32145]
[1757676652497,1.57549583,115230.0,115220.0,0.32145]
[1757676652898,1.57549583,115230.0,115220.0,0.29967]
[1757676657501,1.57549583,115230.0,115220.0,0.32166]
[1757676661000,1.54423366,115230.0,115220.0,0.32166]
[1757676661500,0.18135515,115230.0,115220.0,0.82166]
[1757676661702,1.34374749,115230.0,115220.0,0.83528]
[1757676665217,0.55458749,115230.0,115220.0,0.83528]
[1757676665416,1.34374749,115230.0,115220.0,0.83528]
[1757676669718,0.97051515,115230.0,115220.0,0.83528]
[1757676669921,1.34374749,115230.0,115220.0,0.83528]
[1757676671219,1.37499839,115230.0,115220.0,0.83528]
[1757676671821,0.58583839,115230.0,115220.0,0.83528]
[1757676672020,1.37491839,115230.0,115220.0,0.83528]
[1757676672920,1.00168605,115230.0,115220.0,0.83528]
[1757676673121,1.37491839,115230.0,115220.0,0.83528]
[1757676673621,1.00168605,115230.0,115220.0,0.83528]
[1757676673818,1.37491839,115230.0,115220.0,0.83528]
[1757676676920,1.00168605,115230.0,115220.0,0.83528]
[1757676677121,1.37491839,115230.0,115220.0,0.83528]
[1757676679917,1.38769839,115230.0,115220.0,0.83528]
[1757676680714,1.00164605,115230.0,115220.0,0.83528]
[1757676680914,0.95475895,115230.0,115220.0,0.58528]
[1757676681322,1.14137512,115230.0,115220.0,0.58528]
[1757676682223,1.32799129,115230.0,115220.0,0.58528]
[1757676682824,1.32799129,115230.0,115220.0,0.57661]
[1757676683526,0.26373489,115230.0,115220.0,1.01322617]
[1757676683823,1.06069489,115230.0,115220.0,1.01322617]
[1757676684021,0.21117399,115230.0,115220.0,1.02189617]
[1757676684224,1.00801399,115230.0,115220.0,1.02189617]
[1757676688531,1.00801399,115230.0,115220.0,0.73189617]
[1757676688725,1.00801399,115230.0,115220.0,1.03189617]
[1757676690032,0.82139782,115230.0,115220.0,1.03189617]
[1757676690234,1.00801399,115230.0,115220.0,1.03189617]
[1757676690827,0.82139782,115230.0,115220.0,1.03189617]
[1757676691035,1.00801399,115230.0,115220.0,1.03189617]
[1757676691239,1.00801399,115230.0,115220.0,0.84528]
[1757676691436,1.00801399,115230.0,115220.0,1.03189617]
[1757676691636,1.00709399,115230.0,115220.0,1.03189617]
[1757676692230,1.00709399,115230.0,115220.0,0.83528]
[1757676692432,1.21609016,115230.0,115220.0,0.8528368]
[1757676692734,1.22915016,115230.0,115220.0,0.5892168]
[1757676693130,1.76557601,115230.0,115200.0,0.0129]
[1757676693326,0.39561234,115210.0,115200.0,0.61572]
[1757676693526,1.21345016,115210.0,115200.0,0.61572]
[1757676694335,1.21345016,115210.0,115200.0,0.61672]